Name,Sub Group,Service Area's,Expense Type,Narrative,Date,Transaction Number,Amount,Supplier Name,Supplier Ref,Period ,Year
Allerdale Borough Council,15402,Supplies & Services,IT Services - Corporate Printers,Photocopier Charges,12/09/2018,408357,446.94,KONICA MINOLTA BUSINESS SOLUTIONS UK LTD,A01556,6,2018
Allerdale Borough Council,10114,Employee Costs,Democratic Services Pay Group,Agency to Cover Established Post,05/09/2018,408358,116.34,SYSTEM PEOPLE LTD,A01679,6,2018
Allerdale Borough Council,10114,Employee Costs,Democratic Services Pay Group,Agency to Cover Established Post,05/09/2018,408359,549.9,SYSTEM PEOPLE LTD,A01679,6,2018
Allerdale Borough Council,10114,Employee Costs,Democratic Services Pay Group,Agency to Cover Established Post,05/09/2018,408360,549.9,SYSTEM PEOPLE LTD,A01679,6,2018
Allerdale Borough Council,10114,Employee Costs,Democratic Services Pay Group,Agency to Cover Established Post,05/09/2018,408361,116.34,SYSTEM PEOPLE LTD,A01679,6,2018
Allerdale Borough Council,15303,Supplies & Services,Food and Occupational Health,Laundry,05/09/2018,408362,16,THE LAUNDRY STUDIO,A00225,6,2018
Allerdale Borough Council,15850,Supplies & Services,Homelessness,General Computer Costs,05/09/2018,408363,350,LOCATA (HOUSING SERVICES) LTD,A02533,6,2018
Allerdale Borough Council,10401,Employee Costs,Customer Services Pay Group,Agency Staff Costs,05/09/2018,408364,592,ADECCO RECRUITMENT,A00188,6,2018
Allerdale Borough Council,16350,Supplies & Services,Allerdale Options,Miscellaneous Expenses,05/09/2018,408365,200,MADDISON ENTERTAINMENT,A02589,6,2018
Allerdale Borough Council,12101,Premises,Corporate Property Maintenance,External Maintenance & Decoration,05/09/2018,408366,75,WF SUPPORT SERVICES LTD,C00013,6,2018
Allerdale Borough Council,20305,Third Party Payments,Maryport Wave,Contract Services-Leisure Centres,05/09/2018,408367,19748.41,GREENWICH LEISURE LTD,A00136,6,2018
Allerdale Borough Council,20305,Third Party Payments,Sports & Leisure Centres,Contract Services-Leisure Centres,05/09/2018,408368,51050,GREENWICH LEISURE LTD,A00136,6,2018
Allerdale Borough Council,15101,Supplies & Services,Public Convenience Cleaning,Equipment Costs,05/09/2018,408369,59.04,WF HYGIENE & CLEANING SUPPLIES,A01794,6,2018
Allerdale Borough Council,15501,Supplies & Services,Environmental Initiatives,Consultants Fees,05/09/2018,408370,1275,R G PARKINS & PARTNERS LTD,A02571,6,2018
Allerdale Borough Council,15506,Supplies & Services,Universal Credit,Professional Services,05/09/2018,408371,200,CITIZENS ADVICE BUREAU,A01181,6,2018
Allerdale Borough Council,12101,Premises,Street Naming and Numbering,External Maintenance & Decoration,05/09/2018,408372,582,Redacted information - included personal information ,C00008,6,2018
Allerdale Borough Council,12203,Premises,Public Convenience Cleaning,Plumbing and Heating Maintenance,05/09/2018,408373,802,Redacted information - included personal information ,C00008,6,2018
Allerdale Borough Council,15101,Supplies & Services,Coastal Protection and Inland Flooding,Equipment Costs,19/09/2018,408374,413.04,GLASDON UK LIMITED,C00029,6,2018
Allerdale Borough Council,50000,Capital Expenditure,Harrington reservoir restoration,Capital Programme,26/09/2018,408375,399.8,SPEEDY ASSET SERVICES LTD,C00214,6,2018
Allerdale Borough Council,15506,Supplies & Services,Communications and Marketing,Professional Services,19/09/2018,408376,1200,BIRCHAM DYSON BELL LLP,A02323,6,2018
Allerdale Borough Council,15506,Supplies & Services,Food and Occupational Health,Professional Services,05/09/2018,408377,235,MPM NORTH WEST LIMITED,A00113,6,2018
Allerdale Borough Council,15506,Supplies & Services,Food and Occupational Health,Professional Services,05/09/2018,408378,235,MPM NORTH WEST LIMITED,A00113,6,2018
Allerdale Borough Council,51101,Capital Expenditure,Housing Improvement Projects,External Contractor Payments (Capital),05/09/2018,408379,84,Redacted information - included personal information ,C00008,6,2018
Allerdale Borough Council,10401,Employee Costs,Housing & Health Pay Group,Agency Staff Costs,26/09/2018,408380,206.72,HAYS SPECIALIST RECRUITMENT LTD,A00280,6,2018
Allerdale Borough Council,26000,Earmarked Reserves,Comms & Marketing,Budget-Expd funded from Reserve,05/09/2018,408381,10500,CN EVENTS MANAGEMENT,A01099,6,2018
Allerdale Borough Council,15804,Supplies & Services,IT Services,Computer Data Lines B.T.,12/09/2018,408382,167.05,VAIONI GROUP LTD,A02471,6,2018
Allerdale Borough Council,16150,Supplies & Services,Financial Planning & Economic Growth,General Promotions,05/09/2018,408383,6780,INDUSTRIAL PROCESS & ENGINEERING SERVICES LTD,C00209,6,2018
Allerdale Borough Council,14104,Transport,Homelessness,Repairs & Maintenance,12/09/2018,408384,16.63,MICHELDEVER TYRE SERVICES T/A P&R AUTOCENTRE,A02368,6,2018
Allerdale Borough Council,50000,Capital Expenditure,Harrington reservoir restoration,Capital Programme,05/09/2018,408385,3860.47,LAND AND WATER SERVICES,C00130,6,2018
Allerdale Borough Council,15501,Supplies & Services,Planning and Development,Consultants Fees,05/09/2018,408386,194.65,TREESCAPES CONSULTANCY LTD,A02385,6,2018
Allerdale Borough Council,15401,Supplies & Services,Corporate Postage and Stationary,General Stationery,26/09/2018,408387,522,ANTALIS LIMITED,A00122,6,2018
Allerdale Borough Council,12301,Premises,Corporate Property Maintenance,Security,05/09/2018,408388,55.77,COMPASS SERVICES GROUP,A00839,6,2018
Allerdale Borough Council,12301,Premises,Corporate Property Maintenance,Security,05/09/2018,408389,60.58,COMPASS SERVICES GROUP,A00839,6,2018
Allerdale Borough Council,15502,Supplies & Services,Legal Services,Land Registry Fees,10/09/2018,408390,67,HM LAND REGISTRY,A00505,6,2018
Allerdale Borough Council,15502,Supplies & Services,Housing & Health Pay Group,Land Registry Fees,28/08/2018,408391,54,HM LAND REGISTRY,A00505,6,2018
Allerdale Borough Council,15502,Supplies & Services,Legal Services,Land Registry Fees,29/08/2018,408392,9,HM LAND REGISTRY,A00505,6,2018
Allerdale Borough Council,12402,Premises,Corporate Property Maintenance,Electricity,05/09/2018,408393,958.97,N POWER ,X00015,6,2018
Allerdale Borough Council,12403,Premises,Homelessness,Gas,05/09/2018,408394,129.11,NPOWER,X00277,6,2018
Allerdale Borough Council,12501,Premises,Corporate Property Maintenance,NNDR and Other Occupancy Charges,05/09/2018,408395,413.99,ALLERDALE ,A00342,6,2018
Allerdale Borough Council,50000,Capital Expenditure,Fleming Square (Maryport) - restoration,Capital Programme,26/09/2018,408396,-375,TIVOLI GROUP LTD,A02568,6,2018
Allerdale Borough Council,12501,Premises,Corporate Property Maintenance,NNDR and Other Occupancy Charges,05/09/2018,408397,413.99,ALLERDALE ,A00342,6,2018
Allerdale Borough Council,15601,Supplies & Services,Corporate Postage and Stationary,Postage,05/09/2018,408398,1086,ROYAL MAIL LETTERS,X00021,6,2018
Allerdale Borough Council,14100,Transport,Domestic Waste,Budget-Council Vehicles (Non-capital),12/09/2018,408399,271.6,VOLKSWAGEN GROUP LEASING,A01239,6,2018
Allerdale Borough Council,10204,Employee Costs,Allerdale Options,Staff Reward Payments,28/09/2018,408400,193.73,BARCLAYCARD COMMERCIAL,X00207,6,2018
Allerdale Borough Council,15101,Supplies & Services,Public Convenience Cleaning,Equipment Costs,,408401,83.4,BARCLAYCARD COMMERCIAL ,X00207,6,2018
Allerdale Borough Council,15501,Supplies & Services,Estates,Consultants Fees,05/09/2018,408402,400,ZERAS INDUSTRIES,C00210,6,2018
Allerdale Borough Council,21150,Transfer Payments,Corporate Priorities,General Grants,05/09/2018,408403,12000,CITIZENS ADVICE BUREAU,A01181,6,2018
Allerdale Borough Council,33118,Income,Off-street - Owned,Car Parks - Season Tickets Income,05/09/2018,408404,9.5,Redacted information - included personal information ,M01449,6,2018
Allerdale Borough Council,15203,Supplies & Services,Mayoral Services,Catering Costs and Consumables,05/09/2018,408405,550,Redacted information - included personal information ,M01450,6,2018
Allerdale Borough Council,33106,Income,Bereavement Services,Cemetery - Headstones Erection Income,05/09/2018,408406,75,ROBERTSON MEMORIALS,M01451,6,2018
Allerdale Borough Council,54105,Capital Expenditure,Disabled Facilities Grants,Grants  Private Individuals (Capital),05/09/2018,408407,3552.8,PARTNERSHIP IN PROPERTY MANAGEMENT LTD,X00120,6,2018
Allerdale Borough Council,54105,Capital Expenditure,Discretionary Grants,Grants  Private Individuals (Capital),05/09/2018,408408,11646,DOLPHIN STAIRLIFTS CUMBRIA,X00107,6,2018
Allerdale Borough Council,54105,Capital Expenditure,Discretionary Grants,Grants  Private Individuals (Capital),05/09/2018,408409,3594,W W BUILDERS LIMITED,X00212,6,2018
Allerdale Borough Council,54105,Capital Expenditure,Discretionary Grants,Grants  Private Individuals (Capital),05/09/2018,408410,5494.64,PARTNERSHIP IN PROPERTY MANAGEMENT LTD,X00120,6,2018
Allerdale Borough Council,54105,Capital Expenditure,Disabled Facilities Grants,Grants  Private Individuals (Capital),05/09/2018,408411,4500,DOLPHIN STAIRLIFTS CUMBRIA,X00107,6,2018
Allerdale Borough Council,54105,Capital Expenditure,Disabled Facilities Grants,Grants  Private Individuals (Capital),05/09/2018,408412,1859.58,PARTNERSHIP IN PROPERTY MANAGEMENT LTD,X00120,6,2018
Allerdale Borough Council,54105,Capital Expenditure,Discretionary Grants,Grants  Private Individuals (Capital),05/09/2018,408413,13545.94,L.E.A. BUILDING SERVICES LTD,X00264,6,2018
Allerdale Borough Council,15101,Supplies & Services,Solway Coast AONB Core Funding,Equipment Costs,05/09/2018,408414,26.31,Redacted information - included personal information ,M00839,6,2018
Allerdale Borough Council,33121,Income,Off-street - Owned,Excess Charges - Car Parks Income,12/09/2018,408415,25,Redacted information - included personal information ,M01452,6,2018
Allerdale Borough Council,33118,Income,Off-street - Owned,Car Parks - Season Tickets Income,12/09/2018,408416,45,Redacted information - included personal information ,M01453,6,2018
Allerdale Borough Council,21100,Transfer Payments,Environmental Initiatives,Budget-Grants Paid,12/09/2018,408417,40425.97,WORKINGTON TOWN COUNCIL,A01615,6,2018
Allerdale Borough Council,15502,Supplies & Services,Assistance - Housing Services,Land Registry Fees,24/09/2018,408418,21,HM LAND REGISTRY,A00505,6,2018
Allerdale Borough Council,15502,Supplies & Services,Legal Services,Land Registry Fees,24/09/2018,408419,54,HM LAND REGISTRY,A00505,6,2018
Allerdale Borough Council,15101,Supplies & Services,Off-street - Owned,Equipment Costs,19/09/2018,408420,87.12,RELIANCE HIGH-TECH LTD,C00123,6,2018
Allerdale Borough Council,15501,Supplies & Services,Homelessness,Consultants Fees,12/09/2018,408421,35,ORCHARD HOUSE,A00972,6,2018
Allerdale Borough Council,21150,Transfer Payments,Carnegie Trust Contribution,General Grants,12/09/2018,408422,8750,CARNEGIE THEATRE TRUST,R00015,6,2018
Allerdale Borough Council,14150,Transport,Gates Travel,General-Council Vehicles (Non-Capital),26/09/2018,408423,712.19,GATES TRAVEL,A01525,6,2018
Allerdale Borough Council,15501,Supplies & Services,Building Control - Non-Chargeable,Consultants Fees,12/09/2018,408424,385,ASHCROFT DEMOLITION (CUMBRIA) LTD,C00197,6,2018
Allerdale Borough Council,15501,Supplies & Services,Building Control - Non-Chargeable,Consultants Fees,12/09/2018,408425,7250,ASHCROFT DEMOLITION (CUMBRIA) LTD,C00197,6,2018
Allerdale Borough Council,12305,Premises,Public Convenience Cleaning,Inspections and Services,19/09/2018,408426,40.17,PHS GROUP LTD,C00028,6,2018
Allerdale Borough Council,12305,Premises,Corporate Property Maintenance,Inspections and Services,19/09/2018,408427,4.12,PHS GROUP LTD,C00028,6,2018
Allerdale Borough Council,15401,Supplies & Services,Corporate Postage and Stationary,General Stationery,26/09/2018,408428,176.85,LYRECO,A00043,6,2018
Allerdale Borough Council,15401,Supplies & Services,Corporate Postage and Stationary,General Stationery,26/09/2018,408429,15.58,LYRECO,A00043,6,2018
Allerdale Borough Council,12101,Premises,Corporate Property Maintenance,External Maintenance & Decoration,19/09/2018,408430,540,MAYFLOWER ENGINEERING LTD,C00217,6,2018
Allerdale Borough Council,12305,Premises,Corporate Property Maintenance,Inspections and Services,12/09/2018,408431,343,AQUAID (NORTH),A00123,6,2018
Allerdale Borough Council,12305,Premises,Corporate Property Maintenance,Inspections and Services,19/09/2018,408432,6.18,PHS GROUP LTD,C00028,6,2018
Allerdale Borough Council,15506,Supplies & Services,Housing & Health Pay Group,Professional Services,12/09/2018,408433,562.94,JAMES ANDREW RECRUITMENT SOLUTIONS LTD,A02339,6,2018
Allerdale Borough Council,15803,Supplies & Services,IT Services,Hardware Purchase,03/10/2018,408434,662,PROBRAND,A00040,6,2018
Allerdale Borough Council,16101,Supplies & Services,Planning and Development,Statutory Notices,12/09/2018,408435,327.22,CUMBRIAN NEWSPAPERS LIMITED,A00869,6,2018
Allerdale Borough Council,16101,Supplies & Services,Planning and Development,Statutory Notices,12/09/2018,408436,533.05,CUMBRIAN NEWSPAPERS LIMITED,A00869,6,2018
Allerdale Borough Council,12202,Premises,Corporate Property Maintenance,Electrical Repairs and Service,12/09/2018,408437,643.3,JJ GROUP (CONTRACTING) LTD,C00038,6,2018
Allerdale Borough Council,15101,Supplies & Services,Public Building Cleaning,Equipment Costs,12/09/2018,408438,33.78,WF HYGIENE & CLEANING SUPPLIES,A01794,6,2018
Allerdale Borough Council,10110,Employee Costs,Busy Bees Childcare Scheme,Salary Sacrifice,12/09/2018,408439,1878,COMPUTERSHARE VOUCHER SERVICES,A00991,6,2018
Allerdale Borough Council,16301,Supplies & Services,Sports Development,Reimbursement,12/09/2018,408440,3158,WIGTON BATHS TRUST,M00604,6,2018
Allerdale Borough Council,15203,Supplies & Services,Young People/Apprentices,Catering Costs and Consumables,12/09/2018,408441,42,AL'S KITCHEN LTD,A00187,6,2018
Allerdale Borough Council,14104,Transport,Pest Control,Repairs & Maintenance,12/09/2018,408442,153,D&L AUTOBODIES,A02588,6,2018
Allerdale Borough Council,15101,Supplies & Services,Street Cleansing,Equipment Costs,12/09/2018,408443,169.5,ASHTEAD PLANT HIRE CO LTD,C00019,6,2018
Allerdale Borough Council,15101,Supplies & Services,Street Cleansing,Equipment Costs,12/09/2018,408444,95.07,ASHTEAD PLANT HIRE CO LTD,C00019,6,2018
Allerdale Borough Council,15101,Supplies & Services,Street Cleansing,Equipment Costs,12/09/2018,408445,434.14,ASHTEAD PLANT HIRE CO LTD,C00019,6,2018
Allerdale Borough Council,16301,Supplies & Services,Sports Development,Reimbursement,12/09/2018,408446,6038.65,GREENWICH LEISURE LTD (PREV CARLISLE LEISURE),A00136,6,2018
Allerdale Borough Council,10401,Employee Costs,Customer Services Pay Group,Agency Staff Costs,12/09/2018,408447,472,ADECCO RECRUITMENT,A00188,6,2018
Allerdale Borough Council,15500,Supplies & Services,Bereavement Services,Budget-Services,12/09/2018,408448,480,CUMBRIA HEADSTONES,A02358,6,2018
Allerdale Borough Council,12101,Premises,Multi Storey Car Park Utilities & Maint,External Maintenance & Decoration,12/09/2018,408450,110,NT CLEANERS LTD,A01350,6,2018
Allerdale Borough Council,12309,Premises,Multi Storey Car Park Utilities & Maint,Fire and Safety,26/09/2018,408451,404.72,COOK FIRE & SECURITY LTD,A02485,6,2018
Allerdale Borough Council,15301,Supplies & Services,Community Services Pay Group,Uniforms,26/09/2018,408452,12,KELTIC,A00017,6,2018
Allerdale Borough Council,12307,Premises,Corporate Property Maintenance,Fixtures and Fittings,26/09/2018,408453,141.42,THYSSENKRUPP ELEVATOR UK LTD,C00072,6,2018
Allerdale Borough Council,33118,Income,Off-street - Owned,Car Parks - Season Tickets Income,12/09/2018,408454,14.8,Redacted information - included personal information ,M01454,6,2018
Allerdale Borough Council,33113,Income,Building Control - Chargeable,Building Control Fees Income,12/09/2018,408455,120.42,CUMBRIA CARPENTRY LTD,M01455,6,2018
Allerdale Borough Council,15501,Supplies & Services,Major Contract Procurement,Consultants Fees,12/09/2018,408456,10326.43,BEVAN BRITTAN LLP,A02181,6,2018
Allerdale Borough Council,15501,Supplies & Services,Major Contract Procurement,Consultants Fees,12/09/2018,408457,10899.12,BEVAN BRITTAN LLP,A02181,6,2018
Allerdale Borough Council,15103,Supplies & Services,Solway Coast AONB Core Funding,Purchase of Materials,12/09/2018,408458,225,FIRPRESS PRINTERS,A00063,6,2018
Allerdale Borough Council,15103,Supplies & Services,Solway Coast AONB Core Funding,Purchase of Materials,12/09/2018,408459,100,FIRPRESS PRINTERS,A00063,6,2018
Allerdale Borough Council,15103,Supplies & Services,Solway Coast AONB Core Funding,Purchase of Materials,12/09/2018,408460,280,FIRPRESS PRINTERS,A00063,6,2018
Allerdale Borough Council,15103,Supplies & Services,Solway Coast AONB Core Funding,Purchase of Materials,12/09/2018,408461,110,FIRPRESS PRINTERS,A00063,6,2018
Allerdale Borough Council,15103,Supplies & Services,Solway Coast AONB Core Funding,Purchase of Materials,12/09/2018,408462,420,FIRPRESS PRINTERS,A00063,6,2018
Allerdale Borough Council,15103,Supplies & Services,Solway Coast AONB Core Funding,Purchase of Materials,12/09/2018,408463,281,FIRPRESS PRINTERS,A00063,6,2018
Allerdale Borough Council,15501,Supplies & Services,Major Contract Procurement,Consultants Fees,12/09/2018,408464,6691.34,BEVAN BRITTAN LLP,A02181,6,2018
Allerdale Borough Council,15501,Supplies & Services,Festivals & Events,Consultants Fees,12/09/2018,408465,2100,Redacted information - included personal information ,A00359,6,2018
Allerdale Borough Council,15904,Supplies & Services,Members Services,Training,12/09/2018,408466,195,CIPFA BUSINESS LIMITED,A01791,6,2018
Allerdale Borough Council,15802,Supplies & Services,ICT Infrastructure Costs,Hardware Maintenance,26/09/2018,408467,5210.9,ELITETELE.COM,A02517,6,2018
Allerdale Borough Council,26000,Earmarked Reserves,Comms & Marketing,Budget-Expd funded from Reserve,12/09/2018,408468,318,FIRPRESS PRINTERS,A00063,6,2018
Allerdale Borough Council,15804,Supplies & Services,IT Services,Computer Data Lines B.T.,26/09/2018,408469,45,VAIONI GROUP LTD,A02471,6,2018
Allerdale Borough Council,12305,Premises,Corporate Property Maintenance,Inspections and Services,12/09/2018,408470,49,AQUAID (NORTH),A00123,6,2018
Allerdale Borough Council,12305,Premises,Corporate Property Maintenance,Inspections and Services,12/09/2018,408471,49,AQUAID (NORTH),A00123,6,2018
Allerdale Borough Council,15810,Supplies & Services,IT Services,Software Licences,12/09/2018,408472,300,OTECH LTD,A00141,6,2018
Allerdale Borough Council,15302,Supplies & Services,Public Convenience Cleaning,Protective Clothing,03/10/2018,408473,9.41,ARCO LIMITED ,A00045,6,2018
Allerdale Borough Council,10110,Employee Costs,Busy Bees Childcare Scheme,Salary Sacrifice,12/09/2018,408474,103.29,COMPUTERSHARE VOUCHER SERVICES,A00991,6,2018
Allerdale Borough Council,15302,Supplies & Services,Public Convenience Cleaning,Protective Clothing,26/09/2018,408475,164.55,ARCO LIMITED ,A00045,6,2018
Allerdale Borough Council,15302,Supplies & Services,Public Convenience Cleaning,Protective Clothing,03/10/2018,408476,55.09,ARCO LIMITED,A00045,6,2018
Allerdale Borough Council,15501,Supplies & Services,Festivals & Events,Consultants Fees,12/09/2018,408477,2100,Redacted information - included personal information ,A00359,6,2018
Allerdale Borough Council,10110,Employee Costs,Housing & Health Pay Group,Salary Sacrifice,12/09/2018,408478,2908.35,TUSKERDIRECT LTD,A02186,6,2018
Allerdale Borough Council,15704,Supplies & Services,IT Services,Mobile Phones,12/09/2018,408479,48.46,VODAFONE ,A00551,6,2018
Allerdale Borough Council,15804,Supplies & Services,IT Services,Computer Data Lines B.T.,26/09/2018,408480,870.63,VODAFONE (PREV CABLE & WIRELESS),A00934,6,2018
Allerdale Borough Council,12403,Premises,Homelessness,Gas,12/09/2018,408481,233.45,N POWER,X00014,6,2018
Allerdale Borough Council,12408,Premises,Corporate Property Maintenance,Water & Sewage,12/09/2018,408482,-132.39,SCOTTISH WATER BUSINESS STREAM LTD,X00271,6,2018
Allerdale Borough Council,12403,Premises,Homelessness,Gas,12/09/2018,408483,158.76,N POWER ,X00014,6,2018
Allerdale Borough Council,12408,Premises,Corporate Property Maintenance,Water & Sewage,12/09/2018,408484,8.76,SCOTTISH WATER BUSINESS STREAM LTD,X00271,6,2018
Allerdale Borough Council,12408,Premises,Multi Storey Car Park Utilities & Maint,Water & Sewage,12/09/2018,408485,312.03,SCOTTISH WATER BUSINESS STREAM LTD,X00271,6,2018
Allerdale Borough Council,12408,Premises,Corporate Property Maintenance,Water & Sewage,12/09/2018,408486,83.81,WATERPLUS ,X00011,6,2018
Allerdale Borough Council,12408,Premises,Corporate Property Maintenance,Water & Sewage,12/09/2018,408487,37.44,WATERPLUS,X00011,6,2018
Allerdale Borough Council,12402,Premises,Tenanted Properties,Electricity,12/09/2018,408488,763.7,SOUTHERN ELECTRIC ,X00018,6,2018
Allerdale Borough Council,15501,Supplies & Services,Building Control - Non-Chargeable,Consultants Fees,12/09/2018,408489,200,WHINBARROW DESIGN SERVICES,A00311,6,2018
Allerdale Borough Council,16001,Supplies & Services,Banking and Interest,Bank Charges and Fees,12/09/2018,408490,15.82,ALLPAY.NET LIMITED,A00714,6,2018
Allerdale Borough Council,16001,Supplies & Services,Banking and Interest,Bank Charges and Fees,12/09/2018,408491,15.82,ALLPAY.NET LIMITED,A00714,6,2018
Allerdale Borough Council,16001,Supplies & Services,Banking and Interest,Bank Charges and Fees,12/09/2018,408492,16.27,ALLPAY.NET LIMITED,A00714,6,2018
Allerdale Borough Council,16001,Supplies & Services,Banking and Interest,Bank Charges and Fees,12/09/2018,408493,21.44,ALLPAY.NET LIMITED,A00714,6,2018
Allerdale Borough Council,16001,Supplies & Services,Banking and Interest,Bank Charges and Fees,12/09/2018,408494,17.6,ALLPAY.NET LIMITED,A00714,6,2018
Allerdale Borough Council,16001,Supplies & Services,Banking and Interest,Bank Charges and Fees,12/09/2018,408495,28.77,ALLPAY.NET LIMITED,A00714,6,2018
Allerdale Borough Council,16001,Supplies & Services,Banking and Interest,Bank Charges and Fees,12/09/2018,408496,33.69,ALLPAY.NET LIMITED,A00714,6,2018
Allerdale Borough Council,16001,Supplies & Services,Banking and Interest,Bank Charges and Fees,12/09/2018,408497,25.2,ALLPAY.NET LIMITED,A00714,6,2018
Allerdale Borough Council,16001,Supplies & Services,Banking and Interest,Bank Charges and Fees,12/09/2018,408498,56.11,ALLPAY.NET LIMITED,A00714,6,2018
Allerdale Borough Council,16001,Supplies & Services,Banking and Interest,Bank Charges and Fees,12/09/2018,408499,1559.59,ALLPAY.NET LIMITED,A00714,6,2018
Allerdale Borough Council,12101,Premises,Environmental Initiatives,External Maintenance & Decoration,12/09/2018,408500,387,Redacted information - included personal information ,A00176,6,2018
Allerdale Borough Council,15401,Supplies & Services,Members Services,General Stationery,26/09/2018,408501,28.17,LYRECO,A00043,6,2018
Allerdale Borough Council,15101,Supplies & Services,Off-street - Owned,Equipment Costs,12/09/2018,408502,54.46,CHIPSIDE LIMITED,A00004,6,2018
Allerdale Borough Council,15507,Supplies & Services,Land Charges Service,Searches,12/09/2018,408503,3188,CUMBRIA CC,A00066,6,2018
Allerdale Borough Council,10401,Employee Costs,Land Charges Service,Agency Staff Costs,12/09/2018,408504,447.9,ADECCO RECRUITMENT,A00188,6,2018
Allerdale Borough Council,14150,Transport,Solway AONB,General-Council Vehicles (Non-Capital),26/09/2018,408505,3050,SDV ROOF RACKS (CLITHEROE) LTD,A02573,6,2018
Allerdale Borough Council,12101,Premises,Corporate Property Maintenance,External Maintenance & Decoration,03/10/2018,408506,280,Redacted information - included personal information ,A02593,6,2018
Allerdale Borough Council,12307,Premises,Corporate Property Maintenance,Fixtures and Fittings,26/09/2018,408507,728,SHERIDAN LIFTS LIMITED,C00120,6,2018
Allerdale Borough Council,12309,Premises,Multi Storey Car Park Utilities & Maint,Fire and Safety,26/09/2018,408508,294.29,COOK FIRE & SECURITY LTD,A02485,6,2018
Allerdale Borough Council,15506,Supplies & Services,Legal Services,Professional Services,19/09/2018,408509,437.5,FREETH CARTWRIGHT LLP,A01821,6,2018
Allerdale Borough Council,15101,Supplies & Services,Environmental Protection,Equipment Costs,12/09/2018,408510,341.25,FIRPRESS PRINTERS,A00063,6,2018
Allerdale Borough Council,15101,Supplies & Services,Environmental Protection,Equipment Costs,12/09/2018,408511,45,FIRPRESS PRINTERS,A00063,6,2018
Allerdale Borough Council,15506,Supplies & Services,Economic Regeneration,Professional Services,12/09/2018,408512,2077.1,GOV.UK COMMERCIAL SERVICES,A02585,6,2018
Allerdale Borough Council,12101,Premises,Coastal Protection and Inland Flooding,External Maintenance & Decoration,12/09/2018,408513,350,ASHCROFT DEMOLITION (CUMBRIA) LTD,C00197,6,2018
Allerdale Borough Council,15101,Supplies & Services,Public Convenience Cleaning,Equipment Costs,12/09/2018,408514,978.18,INSTOCK (CHANDLERS),A00050,6,2018
Allerdale Borough Council,16350,Supplies & Services,Homelessness,Miscellaneous Expenses,12/09/2018,408515,275,ID PROPERTIES,M00259,6,2018
Allerdale Borough Council,54105,Capital Expenditure,Disabled Facilities Grants,Grants  Private Individuals (Capital),12/09/2018,408516,3330.79,PARTNERSHIP IN PROPERTY MANAGEMENT LTD,X00120,6,2018
Allerdale Borough Council,16102,Supplies & Services,Social Impact Investment Fund,Regeneration Initiatives,12/09/2018,408517,55000,MPM NORTH WEST LIMITED,A00113,6,2018
Allerdale Borough Council,16102,Supplies & Services,Social Impact Investment Fund,Regeneration Initiatives,12/09/2018,408518,45000,MPM NORTH WEST LIMITED,A00113,6,2018
Allerdale Borough Council,54105,Capital Expenditure,Discretionary Grants,Grants  Private Individuals (Capital),12/09/2018,408519,1780,Redacted information - included personal information ,A01015,6,2018
Allerdale Borough Council,15601,Supplies & Services,Electoral Registration,Postage,12/09/2018,408520,4295.9,ROYAL MAIL LETTERS,X00021,6,2018
Allerdale Borough Council,12403,Premises,Homelessness,Gas,12/09/2018,408521,-129.11,NPOWER,X00277,6,2018
Allerdale Borough Council,12403,Premises,Homelessness,Gas,12/09/2018,408522,53.41,NPOWER,X00277,6,2018
Allerdale Borough Council,12403,Premises,Homelessness,Gas,12/09/2018,408523,119.08,NPOWER,X00277,6,2018
Allerdale Borough Council,12403,Premises,Homelessness,Gas,12/09/2018,408524,52.95,NPOWER,X00277,6,2018
Allerdale Borough Council,12403,Premises,Homelessness,Gas,12/09/2018,408525,132.68,NPOWER,X00277,6,2018
Allerdale Borough Council,15810,Supplies & Services,IT Services,Software Licences,12/09/2018,408526,233.9,FARONICS EMEA LTD,A02253,6,2018
Allerdale Borough Council,16300,Supplies & Services,Off-street - Owned,Budget-Miscellaneous,26/09/2018,408527,778.56,COBALT TELEPHONE TECHNOLOGY,A01008,6,2018
Allerdale Borough Council,15502,Supplies & Services,Legal Services,Land Registry Fees,24/09/2018,408528,51,HM LAND REGISTRY ,A00505,6,2018
Allerdale Borough Council,15502,Supplies & Services,Housing & Health Pay Group,Land Registry Fees,24/09/2018,408529,9,HM LAND REGISTRY ,A00505,6,2018
Allerdale Borough Council,15502,Supplies & Services,Housing & Health Pay Group,Land Registry Fees,11/09/2018,408530,50,HM LAND REGISTRY ,A00505,6,2018
Allerdale Borough Council,14200,Transport,Head of Service - PA Pay Group,Budget-Travel,,408531,2,BARCLAYCARD COMMERCIAL ,X00207,6,2018
Allerdale Borough Council,16150,Supplies & Services,Comms & Marketing,General Promotions,,408532,176.3,BARCLAYCARD COMMERCIAL ,X00207,6,2018
Allerdale Borough Council,15506,Supplies & Services,Environmental Protection,Professional Services,12/09/2018,408533,2473.23,UNITED UTILITIES PLC,A01657,6,2018
Allerdale Borough Council,10114,Employee Costs,Democratic Services Pay Group,Agency to Cover Established Post,19/09/2018,408534,439.92,SYSTEM PEOPLE LTD,A01679,6,2018
Allerdale Borough Council,10114,Employee Costs,Democratic Services Pay Group,Agency to Cover Established Post,19/09/2018,408535,116.34,SYSTEM PEOPLE LTD,A01679,6,2018
Allerdale Borough Council,10114,Employee Costs,Democratic Services Pay Group,Agency to Cover Established Post,19/09/2018,408536,116.34,SYSTEM PEOPLE LTD,A01679,6,2018
Allerdale Borough Council,10114,Employee Costs,Democratic Services Pay Group,Agency to Cover Established Post,19/09/2018,408537,549.9,SYSTEM PEOPLE LTD,A01679,6,2018
Allerdale Borough Council,15101,Supplies & Services,Off-street - Owned,Equipment Costs,12/09/2018,408538,1904.03,CHIPSIDE LIMITED,A00004,6,2018
Allerdale Borough Council,15101,Supplies & Services,Off-street - Owned,Equipment Costs,12/09/2018,408539,3390,CHIPSIDE LIMITED,A00004,6,2018
Allerdale Borough Council,33118,Income,Off-street - Owned,Car Parks - Season Tickets Income,19/09/2018,408540,7.4,Redacted information - included personal information ,M01456,6,2018
Allerdale Borough Council,16350,Supplies & Services,Redacted information - included personal information ,Miscellaneous Expenses,,408541,192.84,BARCLAYCARD COMMERCIAL,X00207,6,2018
Allerdale Borough Council,16150,Supplies & Services,Comms & Marketing,General Promotions,,408542,361.1,BARCLAYCARD COMMERCIAL ,X00207,6,2018
Allerdale Borough Council,99900,Suspense Acc,9599,Budget - SUSPENSE,19/09/2018,408543,190.9,WORKINGTON AFC LTD,R00032,6,2018
Allerdale Borough Council,15501,Supplies & Services,Strategic Priorities,Consultants Fees,19/09/2018,408544,10931.4,BLOOM PROCUREMENT SERVICES LTD,A02360,6,2018
Allerdale Borough Council,16350,Supplies & Services,Head of Service - PA Pay Group,Miscellaneous Expenses,19/09/2018,408545,24.75,AL'S KITCHEN LTD,A00187,6,2018
Allerdale Borough Council,12201,Premises,Corporate Property Maintenance,Internal Maintenance,19/09/2018,408546,275,TAYLOR'S JOINERY & PLASTICS LTD,C00181,6,2018
Allerdale Borough Council,12301,Premises,Corporate Property Maintenance,Security,19/09/2018,408547,90,COMPASS SERVICES GROUP,A00839,6,2018
Allerdale Borough Council,12101,Premises,Corporate Property Maintenance,External Maintenance & Decoration,19/09/2018,408548,590,Redacted information - included personal information ,C00008,6,2018
Allerdale Borough Council,12301,Premises,Corporate Property Maintenance,Security,19/09/2018,408549,291.98,G4S SECURE SOLUTIONS,A01597,6,2018
Allerdale Borough Council,15501,Supplies & Services,Street Cleansing,Consultants Fees,26/09/2018,408550,16,DUNDAS CHEMICAL CO (MOSSPARK),A00175,6,2018
Allerdale Borough Council,10601,Employee Costs,Training,External Courses & Seminar Fees,19/09/2018,408551,387.86,COPELAND BOROUGH COUNCIL,A00589,6,2018
Allerdale Borough Council,15101,Supplies & Services,Housing Strategic Function,Equipment Costs,19/09/2018,408552,500,BUILDING RESEARCH ESTABLISHMENT LTD,A02207,6,2018
Allerdale Borough Council,15500,Supplies & Services,Revenue,Budget-Services,19/09/2018,408553,51.73,ENTERPRISE RENT A CAR,A01367,6,2018
Allerdale Borough Council,12401,Premises,Corporate Property Maintenance,Energy Management Charges,03/10/2018,408554,350,COMMERCIAL SURVEY REPORTS LTD ,A02365,6,2018
Allerdale Borough Council,15302,Supplies & Services,Housing & Health Pay Group,Protective Clothing,03/10/2018,408555,66.16,ARCO LIMITED,A00045,6,2018
Allerdale Borough Council,14201,Transport,Members Services,Public Transport,19/09/2018,408556,180,REAYS COACHES LTD,A01280,6,2018
Allerdale Borough Council,15301,Supplies & Services,Solway Coast AONB Core Funding,Uniforms,19/09/2018,408557,134.18,STITCH & PRINT,A01803,6,2018
Allerdale Borough Council,15810,Supplies & Services,IT Services,Software Licences,19/09/2018,408558,343,SMARTERPAY LTD,A02595,6,2018
Allerdale Borough Council,10601,Employee Costs,Training,External Courses & Seminar Fees,03/10/2018,408559,1245.83,CILEX LAW SCHOOL LTD,A02587,6,2018
Allerdale Borough Council,15203,Supplies & Services,Community Housing Fund,Catering Costs and Consumables,19/09/2018,408560,32.4,VOLUNTARY ACTION CUMBRIA,A01518,6,2018
Allerdale Borough Council,15811,Supplies & Services,IT Services,Software Maintenance,03/10/2018,408561,10000,CIVICA UK LIMITED,A00006,6,2018
Allerdale Borough Council,15506,Supplies & Services,Festivals & Events,Professional Services,19/09/2018,408562,23869.19,CN EVENTS MANAGEMENT,A01099,6,2018
Allerdale Borough Council,14103,Transport,Insurances,Insurance Council Vehicles,19/09/2018,408563,863.67,ENTERPRISE RENT A CAR,A01367,6,2018
Allerdale Borough Council,10401,Employee Costs,Customer Services Pay Group,Agency Staff Costs,19/09/2018,408564,340,ADECCO RECRUITMENT,A00188,6,2018
Allerdale Borough Council,10401,Employee Costs,Customer Services Pay Group,Agency Staff Costs,19/09/2018,408565,592,ADECCO RECRUITMENT,A00188,6,2018
Allerdale Borough Council,15400,Supplies & Services,Parking Services Pay Group,"Budget-Printing,Stationery & Office Supp",19/09/2018,408566,545,FIRPRESS PRINTERS,A00063,6,2018
Allerdale Borough Council,15101,Supplies & Services,Public Building Cleaning,Equipment Costs,19/09/2018,408567,33.12,WF HYGIENE & CLEANING SUPPLIES,A01794,6,2018
Allerdale Borough Council,15501,Supplies & Services,Major Contract Procurement,Consultants Fees,19/09/2018,408568,164545,BLOOM PROCUREMENT SERVICES LTD,A02360,6,2018
Allerdale Borough Council,21150,Transfer Payments,Festivals & Events,General Grants,19/09/2018,408569,1000,SENHOUSE ROMAN MUSEUM,M01457,6,2018
Allerdale Borough Council,15506,Supplies & Services,Museums,Professional Services,19/09/2018,408570,1500,ARTLINK TRANSPORT & STORAGE LTD,A02362,6,2018
Allerdale Borough Council,15506,Supplies & Services,Legal Services,Professional Services,19/09/2018,408571,420,FREETH CARTWRIGHT LLP,A01821,6,2018
Allerdale Borough Council,15404,Supplies & Services,Legal Services,Reference Materials,26/09/2018,408572,368,Redacted information - included personal information ,A00028,6,2018
Allerdale Borough Council,15103,Supplies & Services,Water Quality Signage,Purchase of Materials,,408573,1124.07,BARCLAYCARD COMMERCIAL,X00207,6,2018
Allerdale Borough Council,54105,Capital Expenditure,Disabled Facilities Grants,Grants  Private Individuals (Capital),19/09/2018,408574,1750,THYSSEN KRUPP ENCASA  DIVN OF THYSSENKRUPP LIMITED,X00105,6,2018
Allerdale Borough Council,15101,Supplies & Services,Workington Nature Partnership,Equipment Costs,19/09/2018,408575,9.78,NHBS LIMITED,A02085,6,2018
Allerdale Borough Council,15101,Supplies & Services,Workington Nature Partnership,Equipment Costs,19/09/2018,408576,9.78,NHBS LIMITED,A02085,6,2018
Allerdale Borough Council,15101,Supplies & Services,Recycling,Equipment Costs,26/09/2018,408577,10223.51,JPK TRADE SUPPLIES LTD,A02557,6,2018
Allerdale Borough Council,15101,Supplies & Services,Workington Nature Partnership,Equipment Costs,03/10/2018,408578,41.66,NHBS LIMITED,A02085,6,2018
Allerdale Borough Council,15503,Supplies & Services,Revenue,Court and Tribunal Costs,19/09/2018,408579,5,HMCTS ,A00275,6,2018
Allerdale Borough Council,15804,Supplies & Services,IT Services,Computer Data Lines B.T.,26/09/2018,408580,-152.36,VODAFONE,A00934,6,2018
Allerdale Borough Council,12402,Premises,Corporate Property Maintenance,Electricity,19/09/2018,408581,2606.33,N POWER ,X00015,6,2018
Allerdale Borough Council,12402,Premises,Corporate Property Maintenance,Electricity,19/09/2018,408582,1544.97,N POWER,X00015,6,2018
Allerdale Borough Council,12402,Premises,Multi Storey Car Park Utilities & Maint,Electricity,19/09/2018,408583,1613.14,N POWER,X00015,6,2018
Allerdale Borough Council,12402,Premises,Car Parks Inspection & Maintenance,Electricity,19/09/2018,408584,101.65,N POWER,X00015,6,2018
Allerdale Borough Council,15703,Supplies & Services,IT Services,Call Charges,19/09/2018,408585,1062.65,BRITISH TELECOMMUNICATIONS,X00004,6,2018
Allerdale Borough Council,12402,Premises,Footways,Electricity,19/09/2018,408586,5950.51,N POWER,X00015,6,2018
Allerdale Borough Council,12402,Premises,Corporate Property Maintenance,Electricity,19/09/2018,408587,524.48,N POWER ,X00015,6,2018
Allerdale Borough Council,12402,Premises,Corporate Property Maintenance,Electricity,19/09/2018,408588,900,JUDGE & PRIESTLY SOLICITORS,M01458,6,2018
Allerdale Borough Council,16100,Supplies & Services,Communications and Marketing,Budget-Advertising and Promotions,19/09/2018,408589,85,FIRPRESS PRINTERS,A00063,6,2018
Allerdale Borough Council,16100,Supplies & Services,Communications and Marketing,Budget-Advertising and Promotions,19/09/2018,408590,145,FIRPRESS PRINTERS,A00063,6,2018
Allerdale Borough Council,12303,Premises,Corporate Property Maintenance,Window Cleaning,19/09/2018,408591,440,BORDERBRITE LTD,C00155,6,2018
Allerdale Borough Council,16302,Supplies & Services,Localities & Partnerships,Room Hire,19/09/2018,408592,30,COCKERMOUTH TOWN COUNCIL,A00586,6,2018
Allerdale Borough Council,15301,Supplies & Services,Communications and Marketing,Uniforms,26/09/2018,408593,7.95,K&R BADGES LIMITED,A01328,6,2018
Allerdale Borough Council,20108,Third Party Payments,Corporate Management,Audit Fees,03/10/2018,408594,9264.75,GRANT THORNTON UK LLP,A01736,6,2018
Allerdale Borough Council,14105,Transport,Property Services Pay Group,"Fuel, Lubricants & Consumables",28/09/2018,408595,293.88,BP OIL UK LTD ,X00022,6,2018
Allerdale Borough Council,14105,Transport,Property Services Pay Group,"Fuel, Lubricants & Consumables",,408596,501.35,BP OIL UK LTD ,X00022,6,2018
Allerdale Borough Council,14105,Transport,Solway Coast AONB Core Funding,"Fuel, Lubricants & Consumables",,408597,427.5,BP OIL UK LTD ,X00022,6,2018
Allerdale Borough Council,15402,Supplies & Services,IT Services - Corporate Printers,Photocopier Charges,19/09/2018,408598,181.32,KONICA MINOLTA BUSINESS SOLUTIONS UK LTD,A01556,6,2018
Allerdale Borough Council,15402,Supplies & Services,IT Services - Corporate Printers,Photocopier Charges,19/09/2018,408599,103.17,KONICA MINOLTA BUSINESS SOLUTIONS UK LTD,A01556,6,2018
Allerdale Borough Council,15402,Supplies & Services,IT Services - Corporate Printers,Photocopier Charges,19/09/2018,408600,47.15,KONICA MINOLTA BUSINESS SOLUTIONS UK LTD,A01556,6,2018
Allerdale Borough Council,15402,Supplies & Services,Multi-functional Printers,Photocopier Charges,19/09/2018,408601,1.01,KONICA MINOLTA BUSINESS SOLUTIONS UK LTD,A01556,6,2018
Allerdale Borough Council,12201,Premises,Off-street - Owned,Internal Maintenance,19/09/2018,408602,128,Redacted information - included personal information ,C00008,6,2018
Allerdale Borough Council,12101,Premises,Coastal Protection and Inland Flooding,External Maintenance & Decoration,19/09/2018,408603,876,Redacted information - included personal information ,C00008,6,2018
Allerdale Borough Council,15101,Supplies & Services,Corporate Property Maintenance,Equipment Costs,26/09/2018,408604,155.88,BOOKER CASH & CARRY,A01419,6,2018
Allerdale Borough Council,14202,Transport,Solway Coast AONB Core Funding,Hire Car and petrol,19/09/2018,408605,113.2,ENTERPRISE RENT A CAR,A01367,6,2018
Allerdale Borough Council,52106,Capital Expenditure,Solway coast multi-user pathway,Consultants Fees (Capital),19/09/2018,408606,29608.48,BLOOM PROCUREMENT SERVICES LTD,A02360,6,2018
Allerdale Borough Council,14202,Transport,Chief Executive,Hire Car and petrol,19/09/2018,408607,218.38,ENTERPRISE RENT A CAR,A01367,6,2018
Allerdale Borough Council,15203,Supplies & Services,Members Services,Catering Costs and Consumables,10/10/2018,408608,132.49,KENT AND SUSSEX VENDING,A02127,6,2018
Allerdale Borough Council,15703,Supplies & Services,IT Services,Call Charges,19/09/2018,408609,494.02,BRITISH TELECOMMUNICATIONS,X00004,6,2018
Allerdale Borough Council,12402,Premises,Homelessness,Electricity,19/09/2018,408610,15.41,OPUS ENERGY,X00226,6,2018
Allerdale Borough Council,12402,Premises,Homelessness,Electricity,19/09/2018,408611,13.41,OPUS ENERGY,X00226,6,2018
Allerdale Borough Council,12402,Premises,Homelessness,Electricity,19/09/2018,408612,4.56,OPUS ENERGY,X00226,6,2018
Allerdale Borough Council,12402,Premises,Homelessness,Electricity,19/09/2018,408613,20.68,OPUS ENERGY,X00226,6,2018
Allerdale Borough Council,12402,Premises,Homelessness,Electricity,19/09/2018,408614,33.37,OPUS ENERGY,X00226,6,2018
Allerdale Borough Council,12402,Premises,Homelessness,Electricity,19/09/2018,408615,20.83,OPUS ENERGY,X00226,6,2018
Allerdale Borough Council,12402,Premises,Homelessness,Electricity,19/09/2018,408616,36.94,OPUS ENERGY,X00226,6,2018
Allerdale Borough Council,12403,Premises,Homelessness,Gas,19/09/2018,408617,103.62,NPOWER,X00277,6,2018
Allerdale Borough Council,15601,Supplies & Services,Corporate Postage and Stationary,Postage,19/09/2018,408618,535.24,UK MAIL GROUP PLC,A02371,6,2018
Allerdale Borough Council,15601,Supplies & Services,Corporate Postage and Stationary,Postage,19/09/2018,408619,384.3,UK MAIL GROUP PLC,A02371,6,2018
Allerdale Borough Council,15601,Supplies & Services,Corporate Postage and Stationary,Postage,19/09/2018,408620,687.81,UK MAIL GROUP PLC,A02371,6,2018
Allerdale Borough Council,20304,Third Party Payments,Recycling,Contract Services-Recycling,19/09/2018,408621,378102.25,FCC ENVIRONMENT SERVICES,A00085,6,2018
Allerdale Borough Council,51101,Capital Expenditure,Central Heating Fund,External Contractor Payments (Capital),10/10/2018,408622,58624.96,NPOWER NORTHERN LIMITED,A02337,6,2018
Allerdale Borough Council,15405,Supplies & Services,Members Services,Use of External Printers,26/09/2018,408623,12,FIRPRESS PRINTERS,A00063,6,2018
Allerdale Borough Council,15808,Supplies & Services,IT Services,Computer Consumables,10/10/2018,408624,71.84,MILLGATE LIMITED,A02314,6,2018
Allerdale Borough Council,26000,Earmarked Reserves,Corporate Priorities,Budget-Expd funded from Reserve,19/09/2018,408625,2354,FLIMBY SAXHORN SILVER BAND,M01351,6,2018
Allerdale Borough Council,16350,Supplies & Services,Homelessness,Miscellaneous Expenses,19/09/2018,408626,475,THE GRISDALES CLIENT ACCOUNT,M00009,6,2018
Allerdale Borough Council,16150,Supplies & Services,Town Centres,General Promotions,19/09/2018,408627,6000,Redacted information - included personal information ,M00601,6,2018
Allerdale Borough Council,16102,Supplies & Services,Social Impact Investment Fund,Regeneration Initiatives,19/09/2018,408628,10000,CROSSFIT NO EGO,M01459,6,2018
Allerdale Borough Council,21150,Transfer Payments,Shop Front Improvements,General Grants,19/09/2018,408629,850,Redacted information - included personal information ,M01460,6,2018
Allerdale Borough Council,21150,Transfer Payments,Shop Front Improvements,General Grants,19/09/2018,408630,441,Redacted information - included personal information ,M01460,6,2018
Allerdale Borough Council,33112,Income,Planning and Development,Planning Fees Income,19/09/2018,408631,213,Redacted information - included personal information ,M01461,6,2018
Allerdale Borough Council,10201,Employee Costs,Commissioning Support Pay Group,Long Service Awards,19/09/2018,408632,550,Redacted information - included personal information ,M00171,6,2018
Allerdale Borough Council,20101,Third Party Payments,Recycling,Cleansing Contract,19/09/2018,408633,15884.55,CUMBRIA WASTE MANAGEMENT LTD,A01304,6,2018
Allerdale Borough Council,20101,Third Party Payments,Recycling,Cleansing Contract,19/09/2018,408634,20506.05,CUMBRIA WASTE MANAGEMENT LTD,A01304,6,2018
Allerdale Borough Council,20101,Third Party Payments,Recycling,Cleansing Contract,19/09/2018,408635,24325.21,CUMBRIA WASTE MANAGEMENT LTD,A01304,6,2018
Allerdale Borough Council,15601,Supplies & Services,Electoral Registration,Postage,19/09/2018,408636,4363.11,ADARE SEC LIMITED,A02306,6,2018
Allerdale Borough Council,21303,Transfer Payments,Parish Councils,Parish Councils,26/09/2018,408637,13426.99,ABOVE DERWENT PC,X00042,6,2018
Allerdale Borough Council,21303,Transfer Payments,Parish Councils,Parish Councils,26/09/2018,408638,2350.01,AIKTON P.C.,X00043,6,2018
Allerdale Borough Council,21303,Transfer Payments,Parish Councils,Parish Councils,26/09/2018,408639,4750,ALLHALLOWS P.C.,X00045,6,2018
Allerdale Borough Council,21303,Transfer Payments,Parish Councils,Parish Councils,26/09/2018,408640,5000,ALLONBY P.C.,X00046,6,2018
Allerdale Borough Council,21303,Transfer Payments,Parish Councils,Parish Councils,26/09/2018,408641,32845.72,ASPATRIA T.C.,X00047,6,2018
Allerdale Borough Council,21303,Transfer Payments,Parish Councils,Parish Councils,26/09/2018,408642,3689.66,BASSENTHWAITE P.C.,X00048,6,2018
Allerdale Borough Council,21303,Transfer Payments,Parish Councils,Parish Councils,26/09/2018,408643,5225,BLENNERHASSETT P.C.,X00050,6,2018
Allerdale Borough Council,21303,Transfer Payments,Parish Councils,Parish Councils,26/09/2018,408644,1700,BLINDBOTHEL P.C.,X00051,6,2018
Allerdale Borough Council,21303,Transfer Payments,Parish Councils,Parish Councils,26/09/2018,408645,1699.49,BLINDCRAKE P.C.,X00052,6,2018
Allerdale Borough Council,21303,Transfer Payments,Parish Councils,Parish Councils,26/09/2018,408646,2549.99,BOLTONS P.C.,X00053,6,2018
Allerdale Borough Council,21303,Transfer Payments,Parish Councils,Parish Councils,26/09/2018,408647,3107.71,BORROWDALE P.C.,X00054,6,2018
Allerdale Borough Council,21303,Transfer Payments,Parish Councils,Parish Councils,26/09/2018,408648,2749.99,BOTHEL P.C.,X00055,6,2018
Allerdale Borough Council,21303,Transfer Payments,Parish Councils,Parish Councils,26/09/2018,408649,9453.22,BOWNESS P.C.,X00056,6,2018
Allerdale Borough Council,21303,Transfer Payments,Parish Councils,Parish Councils,26/09/2018,408650,3249.99,BRIDEKIRK P.C.,X00057,6,2018
Allerdale Borough Council,21303,Transfer Payments,Parish Councils,Parish Councils,26/09/2018,408651,4999.5,BRIGHAM P.C.,X00058,6,2018
Allerdale Borough Council,21303,Transfer Payments,Parish Councils,Parish Councils,26/09/2018,408652,3000,BROMFIELD P.C.,X00059,6,2018
Allerdale Borough Council,21303,Transfer Payments,Parish Councils,Parish Councils,26/09/2018,408653,8273.1,BROUGHTON P.C.,X00060,6,2018
Allerdale Borough Council,21303,Transfer Payments,Parish Councils,Parish Councils,26/09/2018,408654,8099.99,BROUGHTON MOOR P.C.,X00061,6,2018
Allerdale Borough Council,21303,Transfer Payments,Parish Councils,Parish Councils,26/09/2018,408655,713.99,BUTTERMERE P.C.,X00062,6,2018
Allerdale Borough Council,21303,Transfer Payments,Parish Councils,Parish Councils,26/09/2018,408656,5950,CALDBECK P.C.,X00063,6,2018
Allerdale Borough Council,21303,Transfer Payments,Parish Councils,Parish Councils,26/09/2018,408657,413.84,CAMERTON P.C.,X00064,6,2018
Allerdale Borough Council,21303,Transfer Payments,Parish Councils,Parish Councils,26/09/2018,408658,97192.41,COCKERMOUTH T.C.,X00065,6,2018
Allerdale Borough Council,21303,Transfer Payments,Parish Councils,Parish Councils,26/09/2018,408659,7096.25,CROSSCANONBY P.C.,X00066,6,2018
Allerdale Borough Council,21303,Transfer Payments,Parish Councils,Parish Councils,26/09/2018,408660,6000,DEAN P.C.,X00067,6,2018
Allerdale Borough Council,21303,Transfer Payments,Parish Councils,Parish Councils,26/09/2018,408661,14749.99,DEARHAM P.C.,X00068,6,2018
Allerdale Borough Council,21303,Transfer Payments,Parish Councils,Parish Councils,26/09/2018,408662,875,DUNDRAW P.C.,X00069,6,2018
Allerdale Borough Council,21303,Transfer Payments,Parish Councils,Parish Councils,26/09/2018,408663,2448.24,EMBLETON P.C.,X00070,6,2018
Allerdale Borough Council,21303,Transfer Payments,Parish Councils,Parish Councils,26/09/2018,408664,4399.99,GILCRUX P.C.,X00071,6,2018
Allerdale Borough Council,21303,Transfer Payments,Parish Councils,Parish Councils,26/09/2018,408665,5000,GREAT CLIFTON P.C.,X00072,6,2018
Allerdale Borough Council,21303,Transfer Payments,Parish Councils,Parish Councils,26/09/2018,408666,5000,GREYSOUTHEN P.C.,X00073,6,2018
Allerdale Borough Council,21303,Transfer Payments,Parish Councils,Parish Councils,26/09/2018,408667,2050,HAYTON & MEALO P.C.,X00074,6,2018
Allerdale Borough Council,21303,Transfer Payments,Parish Councils,Parish Councils,26/09/2018,408668,6359.99,HOLME ABBEY P.C.,X00075,6,2018
Allerdale Borough Council,21303,Transfer Payments,Parish Councils,Parish Councils,26/09/2018,408669,3258.3,HOLME EAST WEAVER P.C.,X00076,6,2018
Allerdale Borough Council,21303,Transfer Payments,Parish Councils,Parish Councils,26/09/2018,408670,999.99,HOLME LOW P.C.,X00077,6,2018
Allerdale Borough Council,21303,Transfer Payments,Parish Councils,Parish Councils,26/09/2018,408671,2500,HOLME ST CUTHBERT P.C.,X00078,6,2018
Allerdale Borough Council,21303,Transfer Payments,Parish Councils,Parish Councils,26/09/2018,408672,3277.49,IREBY & ULDALE P.C.,X00079,6,2018
Allerdale Borough Council,21303,Transfer Payments,Parish Councils,Parish Councils,26/09/2018,408673,123819.67,KESWICK T.C.,X00080,6,2018
Allerdale Borough Council,21303,Transfer Payments,Parish Councils,Parish Councils,26/09/2018,408674,4250,KIRKBAMPTON P.C.,X00081,6,2018
Allerdale Borough Council,21303,Transfer Payments,Parish Councils,Parish Councils,26/09/2018,408675,4889.79,KIRKBRIDE P.C.,X00082,6,2018
Allerdale Borough Council,21303,Transfer Payments,Parish Councils,Parish Councils,26/09/2018,408676,3749.99,LITTLE CLIFTON P.C.,X00083,6,2018
Allerdale Borough Council,21303,Transfer Payments,Parish Councils,Parish Councils,26/09/2018,408677,2750,LORTON P.C.,X00084,6,2018
Allerdale Borough Council,21303,Transfer Payments,Parish Councils,Parish Councils,26/09/2018,408678,1250,LOWESWATER P.C.,X00085,6,2018
Allerdale Borough Council,21303,Transfer Payments,Parish Councils,Parish Councils,26/09/2018,408679,99069.28,MARYPORT T.C.,X00086,6,2018
Allerdale Borough Council,21303,Transfer Payments,Parish Councils,Parish Councils,26/09/2018,408680,5286.5,OUGHTERSIDE & ALLERBY PC,X00044,6,2018
Allerdale Borough Council,21303,Transfer Payments,Parish Councils,Parish Councils,26/09/2018,408681,4992.49,PAPCASTLE P.C.,X00087,6,2018
Allerdale Borough Council,21303,Transfer Payments,Parish Councils,Parish Councils,26/09/2018,408682,2624.99,PLUMBLAND P.C.,X00088,6,2018
Allerdale Borough Council,21303,Transfer Payments,Parish Councils,Parish Councils,26/09/2018,408683,28401.67,SEATON P.C.,X00089,6,2018
Allerdale Borough Council,21303,Transfer Payments,Parish Councils,Parish Councils,26/09/2018,408684,2486.07,SEBERGHAM P.C.,X00090,6,2018
Allerdale Borough Council,21303,Transfer Payments,Parish Councils,Parish Councils,26/09/2018,408685,298.13,SETMURTHY P.C.,X00091,6,2018
Allerdale Borough Council,21303,Transfer Payments,Parish Councils,Parish Councils,26/09/2018,408686,85444,SILLOTH T.C.,X00092,6,2018
Allerdale Borough Council,21303,Transfer Payments,Parish Councils,Parish Councils,26/09/2018,408687,4063.29,ST JOHNS P.C.,X00093,6,2018
Allerdale Borough Council,21303,Transfer Payments,Parish Councils,Parish Councils,26/09/2018,408688,10951.94,THURSBY P.C.,X00094,6,2018
Allerdale Borough Council,21303,Transfer Payments,Parish Councils,Parish Councils,26/09/2018,408689,3062.99,UNDERSKIDDAW P.C.,X00095,6,2018
Allerdale Borough Council,21303,Transfer Payments,Parish Councils,Parish Councils,26/09/2018,408690,1445.41,WAVERTON P.C.,X00096,6,2018
Allerdale Borough Council,21303,Transfer Payments,Parish Councils,Parish Councils,26/09/2018,408691,2625,WESTNEWTON P.C.,X00097,6,2018
Allerdale Borough Council,21303,Transfer Payments,Parish Councils,Parish Councils,26/09/2018,408692,3500.01,WESTWARD P.C.,X00098,6,2018
Allerdale Borough Council,21303,Transfer Payments,Parish Councils,Parish Councils,26/09/2018,408693,98459.99,WIGTON TOWN COUNCIL,X00099,6,2018
Allerdale Borough Council,21303,Transfer Payments,Parish Councils,Parish Councils,26/09/2018,408694,1999.99,WINSCALES P.C.,X00100,6,2018
Allerdale Borough Council,21303,Transfer Payments,Parish Councils,Parish Councils,26/09/2018,408695,3643,WOODSIDE P.C.,X00101,6,2018
Allerdale Borough Council,21303,Transfer Payments,Parish Councils,Parish Councils,26/09/2018,408696,245196.64,WORKINGTON T.C.,X00102,6,2018
Allerdale Borough Council,21303,Transfer Payments,Parish Councils,Parish Councils,26/09/2018,408697,519.32,WYTHOP P.C.,X00103,6,2018
Allerdale Borough Council,15502,Supplies & Services,Housing & Health Pay Group,Land Registry Fees,28/09/2018,408698,96,HM LAND REGISTRY,A00505,6,2018
Allerdale Borough Council,15502,Supplies & Services,Legal Services,Land Registry Fees,28/09/2018,408699,3,HM LAND REGISTRY,A00505,6,2018
Allerdale Borough Council,33118,Income,Off-street - Owned,Car Parks - Season Tickets Income,26/09/2018,408700,60,FORFARMERS UK LTD,M01462,6,2018
Allerdale Borough Council,33112,Income,Planning and Development,Planning Fees Income,26/09/2018,408701,234,MJM CONSULTING ENGINEERS,M01463,6,2018
Allerdale Borough Council,72105,Holding and Control Accounts,Debtor Control Account,Ground Rents (Control Account),26/09/2018,408702,82.8,Redacted information - included personal information ,M01464,6,2018
Allerdale Borough Council,15506,Supplies & Services,Assistance - Housing Services,Professional Services,26/09/2018,408703,1500,ROBERT SCOTT LTD,X00160,6,2018
Allerdale Borough Council,10601,Employee Costs,IT Services,External Courses & Seminar Fees,26/09/2018,408704,2000,SALFORD PROFESSIONAL DEVELOPMENT LTD,A02062,6,2018
Allerdale Borough Council,10401,Employee Costs,Housing & Health Pay Group,Agency Staff Costs,03/10/2018,408705,258.4,HAYS SPECIALIST RECRUITMENT LTD,A00280,6,2018
Allerdale Borough Council,15101,Supplies & Services,Recycling,Equipment Costs,26/09/2018,408706,317,J DUFFY LTD T/A PW CONF BUS SERVICES,A01846,6,2018
Allerdale Borough Council,15405,Supplies & Services,Electoral Registration,Use of External Printers,26/09/2018,408707,1272.6,ADARE SEC LIMITED,A02306,6,2018
Allerdale Borough Council,15400,Supplies & Services,Planning Policy,"Budget-Printing,Stationery & Office Supp",10/10/2018,408708,280,PHOENIX SOFTWARE LTD,A00229,6,2018
Allerdale Borough Council,15401,Supplies & Services,Licensing Service,General Stationery,26/09/2018,408709,388,FIRPRESS PRINTERS,A00063,6,2018
Allerdale Borough Council,10401,Employee Costs,Housing & Health Pay Group,Agency Staff Costs,10/10/2018,408710,258.4,HAYS SPECIALIST RECRUITMENT LTD,A00280,6,2018
Allerdale Borough Council,10114,Employee Costs,Democratic Services Pay Group,Agency to Cover Established Post,26/09/2018,408711,549.9,SYSTEM PEOPLE LTD,A01679,6,2018
Allerdale Borough Council,15506,Supplies & Services,Housing & Health Pay Group,Professional Services,26/09/2018,408712,884.62,JAMES ANDREW RECRUITMENT SOLUTIONS LTD,A02339,6,2018
Allerdale Borough Council,15508,Supplies & Services,Building Control - Chargeable,Subscriptions,26/09/2018,408713,2540,CARLISLE CITY COUNCIL,A00161,6,2018
Allerdale Borough Council,15405,Supplies & Services,Electoral Registration,Use of External Printers,26/09/2018,408714,2332.44,ADARE SEC LIMITED,A02306,6,2018
Allerdale Borough Council,15508,Supplies & Services,Solway Coast AONB Core Funding,Subscriptions,26/09/2018,408715,255,CUMBRIA TOURISM,A00477,6,2018
Allerdale Borough Council,15101,Supplies & Services,Environmental Initiatives,Equipment Costs,10/10/2018,408716,865,DAVID OGILVIE ENGINEERING LTD,A02581,6,2018
Allerdale Borough Council,15506,Supplies & Services,Festivals & Community Events,Professional Services,26/09/2018,408717,284.9,JIM DAVIS PHOTOGRAPHY,A00627,6,2018
Allerdale Borough Council,14101,Transport,Mayoral Services,Vehicle Leasing,26/09/2018,408718,80,DJH SILLOTH LTD T/A SOLWAY PRIVATE HIRE,M00890,6,2018
Allerdale Borough Council,16150,Supplies & Services,"The Hub, Workington Town Centre",General Promotions,26/09/2018,408719,235.89,Redacted information - included personal information ,A01408,6,2018
Allerdale Borough Council,15803,Supplies & Services,IT Services,Hardware Purchase,10/10/2018,408720,116,PROBRAND,A00040,6,2018
Allerdale Borough Council,10401,Employee Costs,Customer Services Pay Group,Agency Staff Costs,26/09/2018,408721,472,ADECCO RECRUITMENT,A00188,6,2018
Allerdale Borough Council,52106,Capital Expenditure,Solway coast multi-user pathway,Consultants Fees (Capital),26/09/2018,408722,10467,BLOOM PROCUREMENT SERVICES LTD,A02360,6,2018
Allerdale Borough Council,21150,Transfer Payments,Shop Front Improvements,General Grants,26/09/2018,408723,900,Redacted information - included personal information ,M01465,6,2018
Allerdale Borough Council,21150,Transfer Payments,Shop Front Improvements,General Grants,26/09/2018,408724,900,Redacted information - included personal information ,M01465,6,2018
Allerdale Borough Council,20150,Third Party Payments,Managed Car Parks,General Partnership Service Fees,26/09/2018,408725,61026,KESWICK CONVENTION TRUST,A02390,6,2018
Allerdale Borough Council,54105,Capital Expenditure,Disabled Facilities Grants,Grants  Private Individuals (Capital),26/09/2018,408726,5700,DOLPHIN STAIRLIFTS CUMBRIA,X00107,6,2018
Allerdale Borough Council,54105,Capital Expenditure,Disabled Facilities Grants,Grants  Private Individuals (Capital),26/09/2018,408727,4008.96,PARTNERSHIP IN PROPERTY MANAGEMENT LTD,X00120,6,2018
Allerdale Borough Council,54105,Capital Expenditure,Disabled Facilities Grants,Grants  Private Individuals (Capital),26/09/2018,408728,1449,PARTNERSHIP IN PROPERTY MANAGEMENT LTD,X00120,6,2018
Allerdale Borough Council,54105,Capital Expenditure,Discretionary Grants,Grants  Private Individuals (Capital),26/09/2018,408729,10576.64,L.E.A. BUILDING SERVICES LTD,X00264,6,2018
Allerdale Borough Council,33118,Income,Off-street - Owned,Car Parks - Season Tickets Income,26/09/2018,408730,7.3,Redacted information - included personal information ,M01466,6,2018
Allerdale Borough Council,10401,Employee Costs,Land Charges Service,Agency Staff Costs,26/09/2018,408731,552.41,ADECCO RECRUITMENT,A00188,6,2018
Allerdale Borough Council,81602,Balance Sheet,General Fund,Prov-Insurance Excess (Balance Sheet),26/09/2018,408732,4500,ZURICH MUNICIPAL,A00429,6,2018
Allerdale Borough Council,12305,Premises,Public Convenience Cleaning,Inspections and Services,26/09/2018,408733,273.6,SOLWAY INDUSTRIAL DOORS LTD,C00015,6,2018
Allerdale Borough Council,15601,Supplies & Services,Corporate Postage and Stationary,Postage,26/09/2018,408734,515.25,UK MAIL GROUP PLC,A02371,6,2018
Allerdale Borough Council,14201,Transport,Mayoral Services,Public Transport,26/09/2018,408735,150,DJH SILLOTH LTD T/A SOLWAY PRIVATE HIRE,M00890,6,2018
Allerdale Borough Council,15507,Supplies & Services,Land Charges Service,Searches,26/09/2018,408736,2543.2,CUMBRIA CC,A00066,6,2018
Allerdale Borough Council,10401,Employee Costs,Land Charges Service,Agency Staff Costs,26/09/2018,408737,552.41,ADECCO RECRUITMENT,A00188,6,2018
Allerdale Borough Council,10101,Employee Costs,Legal Services,Basic Pay,10/10/2018,408738,23.5,SELLICK PARTNERSHIP,A01993,6,2018
Allerdale Borough Council,10101,Employee Costs,Legal Services,Basic Pay,10/10/2018,408739,58.75,SELLICK PARTNERSHIP,A01993,6,2018
Allerdale Borough Council,10101,Employee Costs,Legal Services,Basic Pay,10/10/2018,408740,493.5,SELLICK PARTNERSHIP,A01993,6,2018
Allerdale Borough Council,10101,Employee Costs,Legal Services,Basic Pay,10/10/2018,408741,94,SELLICK PARTNERSHIP,A01993,6,2018
Allerdale Borough Council,15506,Supplies & Services,Recycling,Professional Services,26/09/2018,408742,66.79,MILLCROFT VETERINARY GROUP,A00211,6,2018
Allerdale Borough Council,15506,Supplies & Services,Environmental Protection,Professional Services,,408743,2031.1,UNITED UTILITIES PLC,A01657,6,2018
Allerdale Borough Council,15101,Supplies & Services,Planning Policy,Equipment Costs,,408744,12225,Redacted information - included personal information ,A01574,6,2018
Allerdale Borough Council,12405,Premises,Homelessness,Rentals and Lease Charges,26/09/2018,408745,35,READ GUESTHOUSE,A02591,6,2018
Allerdale Borough Council,12405,Premises,Homelessness,Rentals and Lease Charges,26/09/2018,408746,70,READ GUESTHOUSE,A02591,6,2018
Allerdale Borough Council,12405,Premises,Homelessness,Rentals and Lease Charges,26/09/2018,408747,35,READ GUESTHOUSE,A02591,6,2018
Allerdale Borough Council,21150,Transfer Payments,Corporate Priorities,General Grants,26/09/2018,408748,17500,CITIZENS ADVICE BUREAU,A01181,6,2018
Allerdale Borough Council,15601,Supplies & Services,Corporate Postage and Stationary,Postage,26/09/2018,408749,1275.59,ROYAL MAIL LETTERS,X00021,6,2018
Allerdale Borough Council,15101,Supplies & Services,Homelessness,Equipment Costs,10/10/2018,408750,-5.6,ARGOS BUSINESS SOLUTION-STORE COLLECTION,A00411,6,2018
Allerdale Borough Council,12402,Premises,Corporate Property Maintenance,Electricity,10/10/2018,408751,-803.25,N POWER,X00015,6,2018
Allerdale Borough Council,12402,Premises,Multi Storey Car Park Utilities & Maint,Electricity,10/10/2018,408752,-423.46,N POWER,X00015,6,2018
Allerdale Borough Council,12402,Premises,Multi Storey Car Park Utilities & Maint,Electricity,10/10/2018,408753,-233.56,N POWER,X00015,6,2018
Allerdale Borough Council,12402,Premises,Corporate Property Maintenance,Electricity,10/10/2018,408754,-19.85,N POWER,X00015,6,2018
Allerdale Borough Council,12402,Premises,Corporate Property Maintenance,Electricity,10/10/2018,408755,-20.41,N POWER,X00015,6,2018
Allerdale Borough Council,12402,Premises,Corporate Property Maintenance,Electricity,10/10/2018,408756,-19.85,N POWER,X00015,6,2018
Allerdale Borough Council,12402,Premises,Corporate Property Maintenance,Electricity,10/10/2018,408757,-16.57,N POWER,X00015,6,2018
Allerdale Borough Council,12402,Premises,Corporate Property Maintenance,Electricity,10/10/2018,408758,-15,N POWER,X00015,6,2018
Allerdale Borough Council,12402,Premises,Corporate Property Maintenance,Electricity,10/10/2018,408759,-16.57,N POWER,X00015,6,2018
Allerdale Borough Council,12402,Premises,Corporate Property Maintenance,Electricity,10/10/2018,408760,94.48,N POWER,X00015,6,2018
Allerdale Borough Council,12402,Premises,Corporate Property Maintenance,Electricity,10/10/2018,408761,10.09,N POWER,X00015,6,2018
Allerdale Borough Council,12402,Premises,Corporate Property Maintenance,Electricity,10/10/2018,408762,32.24,N POWER,X00015,6,2018
Allerdale Borough Council,12402,Premises,Corporate Property Maintenance,Electricity,10/10/2018,408763,6.34,N POWER,X00015,6,2018
Allerdale Borough Council,12402,Premises,Corporate Property Maintenance,Electricity,10/10/2018,408764,154.39,N POWER,X00015,6,2018
Allerdale Borough Council,12402,Premises,Corporate Property Maintenance,Electricity,10/10/2018,408765,99.12,N POWER,X00015,6,2018
Allerdale Borough Council,12402,Premises,Corporate Property Maintenance,Electricity,10/10/2018,408766,5.83,N POWER,X00015,6,2018
Allerdale Borough Council,12402,Premises,Corporate Property Maintenance,Electricity,10/10/2018,408767,6.48,N POWER,X00015,6,2018
Allerdale Borough Council,12402,Premises,Public Convenience Cleaning,Electricity,10/10/2018,408768,37.01,N POWER,X00015,6,2018
Allerdale Borough Council,12402,Premises,Public Convenience Cleaning,Electricity,10/10/2018,408769,22.59,N POWER,X00015,6,2018
Allerdale Borough Council,12402,Premises,Public Convenience Cleaning,Electricity,10/10/2018,408770,12.92,N POWER,X00015,6,2018
Allerdale Borough Council,12402,Premises,Public Convenience Cleaning,Electricity,10/10/2018,408771,79.28,N POWER,X00015,6,2018
Allerdale Borough Council,12402,Premises,Multi Storey Car Park Utilities & Maint,Electricity,10/10/2018,408772,5.58,N POWER,X00015,6,2018
Allerdale Borough Council,12402,Premises,Corporate Property Maintenance,Electricity,10/10/2018,408773,292.52,N POWER,X00015,6,2018
Allerdale Borough Council,12402,Premises,Corporate Property Maintenance,Electricity,10/10/2018,408774,829.29,N POWER,X00015,6,2018
Allerdale Borough Council,12402,Premises,Corporate Property Maintenance,Electricity,10/10/2018,408775,535.49,N POWER,X00015,6,2018
Allerdale Borough Council,12402,Premises,Corporate Property Maintenance,Electricity,10/10/2018,408776,553.4,N POWER,X00015,6,2018
Allerdale Borough Council,12402,Premises,Corporate Property Maintenance,Electricity,10/10/2018,408777,535.49,N POWER,X00015,6,2018
Allerdale Borough Council,12402,Premises,Corporate Property Maintenance,Electricity,10/10/2018,408778,619.78,N POWER,X00015,6,2018
Allerdale Borough Council,12402,Premises,Corporate Property Maintenance,Electricity,10/10/2018,408779,2.12,N POWER,X00015,6,2018
Allerdale Borough Council,12402,Premises,Public Convenience Cleaning,Electricity,10/10/2018,408780,2.79,N POWER,X00015,6,2018
Allerdale Borough Council,12402,Premises,Car Parks Inspection & Maintenance,Electricity,10/10/2018,408781,12.92,N POWER,X00015,6,2018
Allerdale Borough Council,12402,Premises,Multi Storey Car Park Utilities & Maint,Electricity,10/10/2018,408782,16.58,N POWER,X00015,6,2018
Allerdale Borough Council,12402,Premises,Multi Storey Car Park Utilities & Maint,Electricity,10/10/2018,408783,10.99,N POWER,X00015,6,2018
Allerdale Borough Council,12402,Premises,Multi Storey Car Park Utilities & Maint,Electricity,10/10/2018,408784,2.75,N POWER,X00015,6,2018
Allerdale Borough Council,12402,Premises,Multi Storey Car Park Utilities & Maint,Electricity,10/10/2018,408785,7.99,N POWER,X00015,6,2018
Allerdale Borough Council,12402,Premises,Multi Storey Car Park Utilities & Maint,Electricity,10/10/2018,408786,1.51,N POWER,X00015,6,2018
Allerdale Borough Council,12402,Premises,Corporate Property Maintenance,Electricity,10/10/2018,408787,29.61,N POWER,X00015,6,2018
Allerdale Borough Council,12402,Premises,Corporate Property Maintenance,Electricity,10/10/2018,408788,10.61,N POWER,X00015,6,2018
Allerdale Borough Council,12402,Premises,Corporate Property Maintenance,Electricity,10/10/2018,408789,11.16,N POWER,X00015,6,2018
Allerdale Borough Council,12402,Premises,Corporate Property Maintenance,Electricity,10/10/2018,408790,11.59,N POWER,X00015,6,2018
Allerdale Borough Council,12402,Premises,Corporate Property Maintenance,Electricity,10/10/2018,408791,11.16,N POWER,X00015,6,2018
Allerdale Borough Council,12402,Premises,Corporate Property Maintenance,Electricity,10/10/2018,408792,8.35,N POWER,X00015,6,2018
Allerdale Borough Council,12402,Premises,Corporate Property Maintenance,Electricity,10/10/2018,408793,6.95,N POWER,X00015,6,2018
Allerdale Borough Council,12402,Premises,Corporate Property Maintenance,Electricity,10/10/2018,408794,14.49,N POWER,X00015,6,2018
Allerdale Borough Council,12402,Premises,Public Convenience Cleaning,Electricity,10/10/2018,408795,5.58,N POWER,X00015,6,2018
Allerdale Borough Council,12403,Premises,Corporate Property Maintenance,Gas,26/09/2018,408796,75.59,CORONA ENERGY,X00003,6,2018
Allerdale Borough Council,12403,Premises,Corporate Property Maintenance,Gas,26/09/2018,408797,132.37,CORONA ENERGY,X00003,6,2018
Allerdale Borough Council,12403,Premises,Corporate Property Maintenance,Gas,26/09/2018,408798,162.46,CORONA ENERGY,X00003,6,2018
Allerdale Borough Council,12403,Premises,Corporate Property Maintenance,Gas,26/09/2018,408799,118.53,CORONA ENERGY,X00003,6,2018
Allerdale Borough Council,12403,Premises,Corporate Property Maintenance,Gas,26/09/2018,408800,86.87,CORONA ENERGY,X00003,6,2018
Allerdale Borough Council,12403,Premises,Corporate Property Maintenance,Gas,26/09/2018,408801,33.63,CORONA ENERGY,X00003,6,2018
Allerdale Borough Council,12403,Premises,Corporate Property Maintenance,Gas,26/09/2018,408802,92.51,CORONA ENERGY,X00003,6,2018
Allerdale Borough Council,15101,Supplies & Services,Homelessness,Equipment Costs,10/10/2018,408803,-16.79,ARGOS BUSINESS SOLUTION,A00411,6,2018
Allerdale Borough Council,12305,Premises,Corporate Property Maintenance,Inspections and Services,10/10/2018,408804,223,TYCO FIRE&INTEGRATED SOLUTIONS,A00773,6,2018
Allerdale Borough Council,15302,Supplies & Services,Public Convenience Cleaning,Protective Clothing,10/10/2018,408805,9.41,ARCO LIMITED ,A00045,6,2018
Allerdale Borough Council,14101,Transport,Mayoral Services,Vehicle Leasing,26/09/2018,408806,70,DJH SILLOTH LTD T/A SOLWAY PRIVATE HIRE,M00890,6,2018
Allerdale Borough Council,14101,Transport,Mayoral Services,Vehicle Leasing,26/09/2018,408807,70,DJH SILLOTH LTD T/A SOLWAY PRIVATE HIRE,M00890,6,2018
Allerdale Borough Council,10600,Employee Costs,Training,Budget-Training,26/09/2018,408808,285,ST MICHAELS CHURCH ,A00452,6,2018
Allerdale Borough Council,14202,Transport,Head of Service - PA Pay Group,Hire Car and petrol,26/09/2018,408809,32.98,ENTERPRISE RENT A CAR,A01367,6,2018
Allerdale Borough Council,16102,Supplies & Services,Town Centres,Regeneration Initiatives,26/09/2018,408810,10000,Redacted information - included personal information ,A02578,6,2018
Allerdale Borough Council,50000,Capital Expenditure,Brow Top Enhancements,Capital Programme,26/09/2018,408811,1999,ATLANTIC GEOMATICS (UK) LTD,A00001,6,2018
Allerdale Borough Council,15101,Supplies & Services,Workington Nature Partnership,Equipment Costs,10/10/2018,408812,64.99,NHBS LIMITED,A02085,6,2018
Allerdale Borough Council,12402,Premises,Corporate Property Maintenance,Electricity,10/10/2018,408813,-958.97,N POWER ,X00015,6,2018
Allerdale Borough Council,12402,Premises,Corporate Property Maintenance,Electricity,10/10/2018,408814,-919.56,N POWER ,X00015,6,2018
Allerdale Borough Council,12402,Premises,Corporate Property Maintenance,Electricity,10/10/2018,408815,-950.16,N POWER ,X00015,6,2018
Allerdale Borough Council,12402,Premises,Corporate Property Maintenance,Electricity,10/10/2018,408816,-919.56,N POWER ,X00015,6,2018
Allerdale Borough Council,12402,Premises,Multi Storey Car Park Utilities & Maint,Electricity,10/10/2018,408817,-856.79,N POWER ,X00015,6,2018
Allerdale Borough Council,12402,Premises,Multi Storey Car Park Utilities & Maint,Electricity,10/10/2018,408818,-1234.67,N POWER ,X00015,6,2018
Allerdale Borough Council,50000,Capital Expenditure,Harrington reservoir restoration,Capital Programme,26/09/2018,408819,172.16,SPEEDY ASSET SERVICES LTD,C00214,6,2018
Allerdale Borough Council,33118,Income,Off-street - Owned,Car Parks - Season Tickets Income,26/09/2018,408820,5.3,Redacted information - included personal information ,M01467,6,2018
Allerdale Borough Council,15301,Supplies & Services,Off-street - Owned,Uniforms,03/10/2018,408831,886.2,KELTIC,A00017,6,2018
Allerdale Borough Council,15301,Supplies & Services,Off-street - Owned,Uniforms,03/10/2018,408832,134.6,KELTIC,A00017,6,2018
Allerdale Borough Council,15101,Supplies & Services,Homelessness,Equipment Costs,10/10/2018,408833,196.76,ARGOS BUSINESS SOLUTION,A00411,6,2018
Allerdale Borough Council,15301,Supplies & Services,Community Services Pay Group,Uniforms,10/10/2018,408834,35.95,KELTIC,A00017,6,2018
Allerdale Borough Council,12201,Premises,Corporate Property Maintenance,Internal Maintenance,03/10/2018,408835,1110,EDDIE SHIMMINGS,A00473,6,2018
Allerdale Borough Council,15301,Supplies & Services,Community Services Pay Group,Uniforms,,408836,74.65,KELTIC,A00017,6,2018
Allerdale Borough Council,15702,Supplies & Services,Off-street - Owned,Line Rentals,26/09/2018,408837,56.47,BRITISH TELECOMMUNICATIONS,X00004,6,2018
Allerdale Borough Council,16350,Supplies & Services,Homelessness,Miscellaneous Expenses,26/09/2018,408842,470,Redacted information - included personal information ,M01468,6,2018
Allerdale Borough Council,21150,Transfer Payments,Shop Front Improvements,General Grants,26/09/2018,408843,1620,Redacted information - included personal information ,M01469,6,2018
Allerdale Borough Council,33118,Income,Off-street - Owned,Car Parks - Season Tickets Income,03/10/2018,408847,5.3,Redacted information - included personal information ,M01470,6,2018
Allerdale Borough Council,14202,Transport,Benefits,Hire Car and petrol,03/10/2018,408848,57.96,ENTERPRISE RENT A CAR,A01367,6,2018
Allerdale Borough Council,15101,Supplies & Services,Homelessness,Equipment Costs,03/10/2018,408849,62.5,THE LAUNDRY STUDIO,A00225,6,2018
Allerdale Borough Council,16100,Supplies & Services,Communications and Marketing,Budget-Advertising and Promotions,03/10/2018,408850,150,EWANRIGG LOCAL TRUST,R00024,6,2018
Allerdale Borough Council,16100,Supplies & Services,Communications and Marketing,Budget-Advertising and Promotions,03/10/2018,408851,150,EWANRIGG LOCAL TRUST,R00024,6,2018
Allerdale Borough Council,16100,Supplies & Services,Communications and Marketing,Budget-Advertising and Promotions,03/10/2018,408852,150,EWANRIGG LOCAL TRUST,R00024,6,2018
Allerdale Borough Council,16100,Supplies & Services,Communications and Marketing,Budget-Advertising and Promotions,03/10/2018,408853,150,EWANRIGG LOCAL TRUST,R00024,6,2018
Allerdale Borough Council,12101,Premises,Corporate Property Maintenance,External Maintenance & Decoration,03/10/2018,408854,1289.34,ASHCROFT PLANT (CUMBRIA) LTD,C00018,6,2018
Allerdale Borough Council,15506,Supplies & Services,Communications and Marketing,Professional Services,,408855,1200,BIRCHAM DYSON BELL LLP,A02323,6,2018
Allerdale Borough Council,12202,Premises,Multi Storey Car Park Utilities & Maint,Electrical Repairs and Service,03/10/2018,408856,805.5,JJ GROUP (CONTRACTING) LTD,C00038,6,2018
Allerdale Borough Council,16100,Supplies & Services,Communications and Marketing,Budget-Advertising and Promotions,03/10/2018,408857,96,CARRICK SIGNS LIMITED,A02580,6,2018
Allerdale Borough Council,12101,Premises,Environmental Initiatives,External Maintenance & Decoration,03/10/2018,408858,1130,Redacted information - included personal information ,C00166,6,2018
Allerdale Borough Council,15501,Supplies & Services,Building Control - Non-Chargeable,Consultants Fees,03/10/2018,408859,240,CUMBRIA PEST & HYGIENE SERVICES,A01167,6,2018
Allerdale Borough Council,12203,Premises,Corporate Property Maintenance,Plumbing and Heating Maintenance,03/10/2018,408860,125,O'CONNELL & BEAN (MECH&ELEC) LTD,C00078,6,2018
Allerdale Borough Council,12201,Premises,MSCP Utilities & Maint fund,Internal Maintenance,03/10/2018,408861,832,Redacted information - included personal information ,C00008,6,2018
Allerdale Borough Council,21150,Transfer Payments,Shop Front Improvements,General Grants,03/10/2018,408862,675,Redacted information - included personal information ,M01471,6,2018
Allerdale Borough Council,75103,Holding and Control Accounts,Payroll Suspense Account,PAYROLL September 2018 Travel & Subsistence  ,,,10156.19,INLAND REVENUE,X00038,6,2018
